bitfinex/quotes_ETHUSD_20250711
["timestamp","ask_amount","ask_price","bid_price","bid_amount"]
[1752211076470,0.8946,2990.1,2989.8,26.55374079]
[1752211076671,5.432,2990.0,2989.8,26.55374079]
[1752211077063,5.432,2990.0,2989.8,24.32364147]
[1752211077365,8.822,2990.4,2989.8,25.13724147]
[1752211077576,5.43,2990.3,2989.8,25.13724147]
[1752211077873,8.02,2990.4,2989.8,25.13724147]
[1752211078196,5.43,2990.2,2989.8,25.13724147]
[1752211078397,8.02,2990.4,2989.8,25.13724147]
[1752211078567,0.765,2991.2,2989.8,25.13724147]
[1752211078764,5.432,2990.9,2989.8,25.13724147]
[1752211079323,3.34368626,2990.8,2989.8,25.13724147]
[1752211079601,8.77554653,2990.9,2989.8,25.13724147]
[1752211079784,0.1672,2990.0,2989.8,25.13724147]
[1752211079984,5.432,2989.9,2989.8,24.32364147]
[1752211080187,5.99192,2989.9,2989.8,22.37584986]
[1752211080701,0.55992,2989.9,2989.8,22.37584986]
[1752211080865,5.432,2989.9,2989.8,22.37584986]
[1752211081394,14.5,2990.4,2989.8,22.37584986]
[1752211081604,3.34427336,2990.2,2989.8,22.37584986]
[1752211081762,18.7741847,2990.3,2989.8,22.37584986]
[1752211082109,15.43,2990.3,2989.8,22.37584986]
[1752211082312,2.993,2990.2,2989.8,19.44776012]
[1752211082666,5.432,2990.1,2989.8,19.44776012]
[1752211082908,2.993,2990.2,2989.8,19.44776012]
[1752211083118,5.431,2990.1,2989.8,19.44776012]
[1752211083507,2.993,2990.2,2989.8,19.44776012]
[1752211083690,5.429,2990.1,2989.8,19.44776012]
[1752211083887,5.429,2990.0,2989.8,19.44776012]
[1752211084087,0.8255,2990.5,2989.8,19.44776012]
[1752211084088,5.429,2989.9,2989.8,19.44776012]
[1752211085017,0.8255,2990.5,2989.8,19.44776012]
[1752211085192,5.429,2990.4,2989.8,19.44776012]
[1752211085398,0.62545,2990.3,2989.8,19.44776012]
[1752211085800,5.429,2990.2,2989.8,19.44776012]
[1752211087919,5.429,2990.1,2989.8,19.44776012]
[1752211088423,5.429,2990.0,2989.8,19.44776012]
[1752211089118,5.429,2989.9,2989.8,19.44776012]
[1752211090189,8.8495,2990.5,2989.8,19.44776012]
[1752211090190,8.024,2990.5,2989.8,20.25646012]
[1752211090502,10.88495,2990.4,2989.8,20.25646012]
[1752211090702,16.31395,2990.4,2989.8,20.25646012]
[1752211091099,19.65798965,2990.4,2989.8,20.25646012]
[1752211091433,16.31395,2990.4,2989.8,19.44776012]
[1752211091638,2.76819096,2990.3,2989.8,19.44776012]
[1752211091795,5.429,2990.2,2989.8,19.44776012]
[1752211092229,2.76819096,2990.3,2989.8,19.44776012]
[1752211092434,5.429,2990.1,2989.8,19.44776012]
[1752211092743,2.76819096,2990.3,2989.8,19.44776012]
[1752211092907,8.024,2990.5,2989.8,19.44776012]
[1752211093108,8.024,2990.5,2989.9,0.7802]
[1752211093109,0.1672,2990.2,2989.9,0.7802]
[1752211093495,5.429,2990.4,2989.9,0.7802]
[1752211093694,5.429,2990.3,2989.9,0.7802]
[1752211094049,0.1672,2990.2,2989.9,0.7802]
[1752211094613,5.429,2990.1,2989.9,0.7802]
[1752211095524,8.8264,2990.5,2989.9,0.7802]
[1752211095525,8.024,2990.5,2989.9,0.7802]
[1752211095706,5.429,2990.4,2990.0,0.1672]
[1752211097828,8.1904,2990.5,2990.1,0.7715]
[1752211098184,0.1664,2990.8,2990.3,0.1672]
[1752211098300,0.89124231,2992.1,2990.3,0.1672]
[1752211098301,0.1664,2991.4,2990.6,0.7715]
[1752211098507,5.429,2991.6,2990.8,10.0]
[1752211098737,5.429,2991.6,2991.3,0.7715]
[1752211098917,0.1664,2991.8,2991.3,0.7715]
[1752211099330,5.428,2991.7,2991.3,0.7715]
[1752211099547,5.5944,2991.7,2991.3,0.7715]
[1752211099839,5.98744,2991.7,2991.3,0.7715]
[1752211100160,0.1664,2991.5,2991.3,0.7715]
[1752211100703,5.427,2991.4,2991.3,0.7715]
[1752211100946,5.427,2991.6,2991.3,0.7715]
[1752211101148,5.427,2991.6,2991.4,0.1664]
[1752211101306,0.1664,2991.9,2991.4,0.1664]
[1752211101500,5.427,2991.8,2991.4,0.8177]
[1752211101746,5.427,2991.8,2991.5,0.1664]
[1752211104014,3.34114914,2993.0,2991.5,0.1664]
[1752211104015,0.7908,2993.1,2991.6,0.8138]
[1752211104261,0.1664,2992.6,2991.8,0.8138]
[1752211104436,0.1664,2992.6,2992.2,0.1664]
[1752211104437,5.5924,2992.6,2992.2,0.1664]
[1752211104619,5.5924,2992.6,2992.3,0.8138]
[1752211104620,5.426,2992.5,2992.3,0.8138]
[1752211105203,0.1664,2992.6,2992.3,0.8138]
[1752211105511,5.426,2992.5,2992.3,0.9802]
[1752211105719,8.8264,2992.7,2992.3,0.9802]
[1752211105952,6.32528,2992.6,2992.3,0.9802]
[1752211106654,0.89928,2992.6,2992.3,0.9802]
[1752211106808,8.024,2992.7,2992.3,0.9802]
[1752211106809,5.425,2992.5,2992.3,0.9802]
[1752211108152,8.024,2992.7,2992.3,0.9802]
[1752211108359,5.425,2992.6,2992.3,0.9802]
[1752211108729,5.424,2992.5,2992.3,0.9802]
[1752211108921,8.024,2992.7,2992.3,0.9802]
[1752211109277,5.424,2992.6,2992.3,0.9802]
[1752211111041,0.1664,2992.8,2992.3,0.9802]
[1752211111354,5.424,2992.6,2992.3,0.9802]
[1752211112125,5.423,2992.7,2992.3,0.8138]
[1752211112335,5.423,2992.8,2992.5,0.1664]
[1752211112560,0.1664,2993.0,2992.5,0.1664]
[1752211112745,0.1664,2993.0,2992.1,0.03342134]
[1752211112746,0.002,2993.6,2992.6,0.03341575]
[1752211112924,5.425,2993.6,2992.8,0.8245]
[1752211113119,5.423,2993.5,2992.9,0.8579124]
[1752211113325,5.423,2993.5,2992.9,0.8245]
[1752211115065,0.8189,2993.4,2991.4,0.7616]
[1752211115234,0.8189,2993.4,2991.6,0.7616]
[1752211115625,0.8189,2993.4,2991.7,0.7616]
[1752211115826,0.9582508,2993.3,2991.7,0.7616]
[1752211116026,0.9082508,2993.3,2991.9,0.8137]
[1752211116228,5.421,2993.2,2992.0,0.84712245]
[1752211116458,5.421,2993.2,2992.0,0.8137]
[1752211120139,0.002,2993.6,2992.2,0.7711]
[1752211120352,0.002,2993.6,2992.4,0.7711]
[1752211120353,5.42,2993.5,2992.4,0.7711]
[1752211120529,5.42,2993.5,2992.2,10.0]
[1752211120530,0.62121,2993.5,2992.6,0.7711]
[1752211120748,5.42,2993.4,2992.6,0.7711]
[1752211122579,0.002,2993.6,2992.6,0.7711]
[1752211122881,0.1664,2993.2,2992.7,0.1664]
[1752211124283,5.5864,2993.2,2992.7,0.1664]
[1752211124507,5.42,2993.1,2992.7,0.1664]
[1752211124783,5.97864,2993.1,2992.7,0.1664]
[1752211125282,0.55864,2993.1,2992.7,0.1664]
[1752211125459,0.55864,2993.1,2991.6,3.34267996]
[1752211125460,6.2104,2993.0,2992.3,0.7599]
[1752211125786,0.1664,2992.8,2992.3,0.9263]
[1752211127855,0.1164,2992.8,2992.3,0.9263]
[1752211129056,5.419,2992.9,2991.4,0.7841]
[1752211129261,0.1664,2992.6,2992.1,0.7841]
[1752211131295,0.8056,2992.6,2990.7,0.8166]
[1752211131492,0.1664,2991.9,2991.5,0.1664]
[1752211131793,5.5844,2991.9,2991.5,0.1664]
[1752211131981,5.418,2991.9,2991.5,0.1664]
[1752211132183,5.418,2992.0,2991.5,0.1664]
[1752211132384,5.418,2991.9,2991.5,0.1664]
[1752211132771,5.97644,2991.9,2991.3,0.8166]
[1752211132974,5.97644,2991.9,2991.3,0.983]
[1752211132975,0.1664,2991.8,2991.3,0.983]
[1752211133575,5.5844,2991.8,2991.3,0.983]
[1752211134180,0.8056,2992.6,2991.4,8.53351935]
[1752211134364,0.1664,2992.5,2992.0,0.1664]
[1752211134697,5.417,2992.6,2991.9,0.03342357]
[1752211134993,5.417,2992.6,2992.1,0.1664]
[1752211135498,0.002,2993.1,2992.2,10.835]
[1752211135684,0.002,2993.1,2993.0,0.7561]
[1752211135885,0.002,2993.1,2993.0,2.17350704]
[1752211136066,0.002,2993.1,2993.0,1.26280107]
[1752211136478,0.002,2993.1,2993.0,4.60393037]
[1752211136699,0.002,2993.1,2993.0,14.60393037]
[1752211136867,0.002,2993.1,2993.0,14.0972293]
[1752211137063,0.002,2993.1,2993.0,14.6472293]
[1752211137401,0.002,2993.6,2993.5,14.16557123]
[1752211137704,0.002,2993.6,2993.5,24.99957123]
[1752211137867,0.002,2993.6,2993.5,21.659]
[1752211138398,0.002,2993.6,2993.5,25.54957123]
[1752211139169,0.002,2993.8,2993.5,25.54957123]
[1752211139170,0.002,2993.8,2993.7,4.65544806]
[1752211139365,0.002,2993.8,2993.7,13.15553825]
[1752211140183,0.022,2993.9,2993.8,14.65533648]
[1752211140467,0.022,2993.9,2993.8,0.7651]
[1752211141303,0.022,2993.9,2993.8,0.79850236]
[1752211141505,0.022,2993.9,2993.8,0.7651]
[1752211142204,0.022,2993.9,2993.8,0.79850236]
[1752211142706,0.002,2994.3,2993.9,0.55]
[1752211142887,0.002,2994.3,2994.2,9.26519019]
[1752211143087,0.002,2994.3,2994.2,0.7651]
[1752211145313,0.002,2994.3,2994.0,10.828]
[1752211145524,0.002,2994.3,2994.2,0.1664]
[1752211147918,0.002,2994.3,2993.6,11.5754]
[1752211148213,0.002,2994.3,2992.1,8.017]
[1752211148214,0.1664,2994.0,2993.5,0.1664]
[1752211148817,0.1684,2994.3,2993.7,0.1664]
[1752211150017,0.8237,2994.2,2993.7,0.1664]
[1752211150235,0.1684,2994.3,2993.8,0.7944]
[1752211150529,0.002,2994.3,2994.2,0.1664]
[1752211150827,0.002,2994.3,2993.8,10.7944]
[1752211151027,0.002,2994.3,2994.1,0.1664]
[1752211152114,0.002,2994.3,2993.9,0.03340124]
[1752211152321,0.002,2994.3,2994.2,0.1664]
[1752211153013,0.002,2994.3,2993.8,0.7944]
[1752211153014,0.002,2994.3,2994.1,0.1664]
[1752211156025,0.002,2994.3,2993.5,5.411]
[1752211156325,0.7868,2994.2,2993.2,0.7626]
[1752211156536,0.7868,2994.2,2993.3,0.03340794]
[1752211156701,0.9532,2994.2,2993.6,0.1664]
[1752211158027,0.1664,2994.0,2993.5,0.1664]
[1752211159340,0.1664,2993.8,2993.3,0.1664]
[1752211159708,0.002,2994.3,2992.6,0.001]
[1752211159709,0.8253,2993.7,2992.6,0.001]
[1752211159911,0.1664,2993.2,2992.6,0.1674]
[1752211161711,5.41,2993.7,2992.6,0.001]
[1752211161712,0.7946,2993.1,2992.6,0.001]
[1752211161912,0.1664,2992.7,2992.6,0.001]
[1752211162810,0.7946,2993.1,2992.6,0.001]
[1752211163011,0.1664,2993.0,2992.6,0.001]
[1752211164131,0.7946,2993.1,2992.6,0.001]
[1752211164340,0.7946,2993.1,2992.7,0.1664]
[1752211165045,0.1664,2993.2,2992.7,0.1664]
[1752211165938,0.1664,2993.1,2992.6,0.001]
[1752211167345,0.7542,2993.7,2992.7,0.7738]
[1752211167552,0.1664,2993.9,2993.4,0.1664]
[1752211167714,3.34036976,2993.7,2992.7,0.7738]
[1752211168046,3.34068603,2993.4,2992.6,0.001]
[1752211168250,0.7542,2993.3,2992.6,0.001]
[1752211168411,3.3410302,2993.1,2992.6,0.001]
[1752211168612,1.08830302,2993.0,2992.6,0.001]
[1752211168954,0.7542,2993.0,2992.6,0.001]
[1752211170454,5.409,2992.9,2992.6,0.001]
[1752211172224,0.7542,2993.0,2992.6,0.001]
[1752211172449,0.8188,2993.5,2992.6,0.001]
[1752211172638,0.8188,2993.1,2992.6,0.001]
[1752211173429,3.34118171,2993.0,2992.6,0.001]
[1752211173919,3.34124974,2992.9,2992.6,0.001]
[1752211174258,3.34124093,2992.9,2992.6,0.001]
[1752211174754,4.17104678,2993.0,2992.6,0.001]
[1752211174954,0.47210468,2992.9,2992.6,0.001]
[1752211176263,0.8299,2993.0,2992.6,0.001]
[1752211177446,5.409,2992.9,2992.6,0.001]
[1752211177755,0.8299,2993.0,2992.6,0.001]
[1752211177937,5.409,2992.8,2992.6,0.001]
[1752211179059,0.1664,2992.7,2992.6,0.001]
[1752211180336,0.72394,2992.7,2992.6,0.001]
[1752211180742,6.13194,2992.7,2992.6,0.001]
[1752211181347,0.88328,2993.4,2992.6,0.7982]
[1752211181348,1.71258,2993.4,2992.6,0.7982]
[1752211181658,0.1664,2993.0,2992.6,0.7982]
[1752211182047,0.8293,2993.7,2992.6,0.7982]
[1752211182264,0.1664,2993.4,2992.9,0.1664]
[1752211182438,5.408,2993.4,2993.1,0.1664]
[1752211184133,0.1664,2993.7,2993.1,0.1664]
[1752211184335,0.002,2994.3,2993.2,0.78980906]
[1752211184336,5.407,2993.5,2993.2,0.78980906]
[1752211184544,5.407,2993.5,2993.2,0.7564]
[1752211184859,5.407,2993.5,2993.3,0.1664]
[1752211185426,5.407,2993.5,2993.2,0.7564]
[1752211185427,5.407,2993.5,2993.4,0.1664]
[1752211186148,5.407,2993.5,2993.2,0.7564]
[1752211186458,5.9477,2993.5,2993.2,0.7564]
[1752211186657,0.1664,2993.7,2993.2,0.7564]
[1752211186961,5.406,2993.6,2993.2,0.7564]
[1752211187455,0.002,2993.9,2993.2,0.7564]
[1752211187660,0.1684,2993.9,2993.4,0.1664]
[1752211187839,5.406,2993.8,2993.4,0.1664]
[1752211188162,0.1684,2993.9,2993.4,0.1664]
[1752211188325,5.405,2993.8,2993.6,0.1664]
[1752211188528,5.405,2993.8,2993.2,0.7564]
[1752211188728,5.5714,2993.8,2993.3,0.1664]
[1752211188962,5.405,2993.7,2993.3,0.1664]
[1752211189766,5.96234,2993.7,2993.3,0.1664]
[1752211190128,0.002,2993.9,2993.4,10.81790682]
[1752211190430,0.002,2993.9,2993.4,10.7845]
[1752211190850,0.002,2993.9,2993.4,0.7845]
[1752211191344,0.002,2993.9,2993.5,0.03340571]
[1752211191542,0.002,2993.9,2993.4,0.7845]
[1752211192436,5.406,2993.9,2993.4,0.7845]
[1752211194446,5.9466,2993.9,2993.4,0.7845]
[1752211195047,5.9466,2993.9,2993.1,0.7706]
[1752211195558,0.5426,2993.9,2993.1,0.7706]
[1752211195737,5.403,2993.8,2993.1,0.7706]
[1752211196851,0.002,2993.9,2993.1,0.7706]
[1752211197053,5.402,2993.8,2993.1,0.7706]
[1752211200171,5.401,2993.7,2993.6,0.1664]
[1752211200345,5.9413,2993.7,2993.3,0.1664]
[1752211200543,0.1684,2993.9,2993.4,0.03340682]
[1752211200544,5.403,2993.9,2993.4,0.03340682]
[1752211200964,5.403,2993.9,2993.5,0.7853]
[1752211201287,0.002,2993.9,2993.5,0.7853]
[1752211202573,0.002,2993.9,2993.6,0.03340459]
[1752211202945,0.002,2993.9,2993.5,0.7853]
[1752211204085,0.002,2993.9,2993.6,0.03340459]
[1752211206587,0.002,2993.9,2991.5,0.001]
[1752211206588,0.002,2993.9,2992.8,10.0]
[1752211206789,0.002,2993.9,2992.9,0.7593]
[1752211208297,0.002,2993.9,2992.6,0.795]
[1752211208492,0.002,2993.9,2992.7,8.53350483]
[1752211208707,0.002,2993.9,2992.8,10.0]
[1752211208864,0.002,2993.9,2992.7,8.50009019]
[1752211208865,0.002,2993.9,2992.9,0.0334124]
[1752211209255,0.002,2993.9,2993.0,0.794]
[1752211209698,5.4,2993.9,2993.0,0.794]
[1752211210565,0.1664,2993.8,2993.3,0.1664]
[1752211211781,0.002,2993.9,2993.0,0.794]
[1752211211975,5.399,2993.9,2993.7,0.1664]
[1752211212362,0.002,2993.9,2993.7,0.1664]
[1752211212864,0.002,2993.9,2993.4,0.1664]
[1752211213793,0.002,2993.9,2993.5,0.03340571]
[1752211213995,0.002,2993.9,2993.7,0.1664]
[1752211216077,0.002,2993.9,2993.4,0.1664]
[1752211219305,0.1664,2993.7,2993.2,0.1664]
[1752211220393,5.394,2993.6,2993.2,0.1664]
[1752211220597,0.72244,2993.5,2993.0,0.1664]
[1752211221088,0.1664,2993.3,2992.8,0.1664]
[1752211221612,0.994,2993.3,2992.8,0.1664]
[1752211221821,0.8276,2993.3,2992.6,0.001]
[1752211222144,0.1664,2993.0,2992.6,0.001]
[1752211222288,5.393,2992.9,2992.6,0.001]
[1752211222617,5.94894,2992.9,2992.6,0.001]
[1752211222784,0.1664,2992.8,2992.6,0.001]
[1752211223386,0.7567,2992.7,2992.6,0.001]
[1752211226705,4.09816422,2992.7,2992.6,0.001]
[1752211226876,4.10556422,2992.7,2992.6,0.001]
[1752211227076,5.44513987,2992.7,2992.6,0.001]
[1752211227277,5.99513987,2992.7,2992.6,0.001]
[1752211228180,15.99513987,2992.7,2992.6,0.001]
[1752211228803,21.38813987,2992.7,2992.6,0.001]
[1752211229482,15.99513987,2992.7,2992.6,0.001]
[1752211229880,21.38713987,2992.7,2992.6,0.001]
[1752211233899,21.38613987,2992.7,2992.6,0.001]
[1752211234101,18.04467565,2992.7,2992.6,0.001]
[1752211234301,0.55594,2992.9,2992.6,0.001]
[1752211234618,5.391,2992.8,2992.6,0.001]
[1752211235529,0.763,2992.7,2992.6,0.001]
[1752211235709,0.763,2992.7,2991.4,0.7633]
[1752211235710,0.55,2991.5,2989.3,0.7623]
[1752211235895,1.2333,2990.8,2989.3,0.7623]
[1752211236099,10.0,2990.6,2989.3,0.7623]
[1752211236289,2.0782,2990.5,2989.3,0.7623]
[1752211236486,10.782,2990.4,2989.3,0.7623]
[1752211238494,14.12608696,2990.4,2989.3,0.7623]
[1752211239243,14.12603761,2990.4,2989.3,0.7623]
[1752211239515,4.13797328,2990.3,2989.3,0.7623]
[1752211239727,1.49199733,2990.2,2989.3,0.7623]
[1752211239930,10.784,2990.1,2989.3,0.7623]
[1752211240307,10.784,2990.1,2989.1,0.04]
[1752211240308,5.392,2990.0,2989.9,0.8149]
[1752211240750,5.393,2990.0,2989.9,0.8149]
[1752211240952,5.3795,2990.0,2989.9,0.8149]
[1752211242307,5.392,2990.0,2989.9,0.8149]
[1752211242634,5.392,2990.0,2989.6,0.7806]
[1752211242838,0.5392,2990.0,2989.6,0.7806]
[1752211243016,4.12594183,2990.6,2989.6,0.7806]
[1752211243217,8.73595651,2990.5,2989.6,0.7806]
[1752211243631,5.392,2990.4,2989.6,0.7806]
[1752211243808,5.392,2990.3,2989.6,0.7806]
[1752211245225,5.393,2990.2,2989.6,0.7806]
[1752211245408,0.8213,2990.8,2989.6,0.7806]
[1752211245608,6.47513,2990.7,2989.6,0.7806]
[1752211245839,0.1672,2990.4,2989.9,0.1672]
[1752211246253,5.392,2990.3,2989.9,0.1672]
[1752211246920,0.1672,2990.4,2989.9,0.1672]
[1752211247245,5.392,2990.2,2989.9,0.1672]
[1752211247947,5.393,2990.1,2989.9,0.1672]
[1752211249351,5.393,2990.0,2989.9,0.1672]
[1752211250635,0.1672,2990.4,2989.9,0.1672]
[1752211250948,5.392,2990.3,2990.0,0.8268]
[1752211251849,0.1672,2990.4,2990.0,0.8268]
[1752211252045,5.392,2990.3,2990.0,0.8268]
[1752211252649,5.9312,2990.3,2990.0,0.8268]
[1752211255367,5.9312,2990.3,2989.6,0.7862]
[1752211256142,5.392,2990.2,2989.6,0.7862]
[1752211257764,5.392,2990.1,2989.6,0.7862]
[1752211259975,0.5392,2990.3,2989.6,0.7862]
[1752211260171,5.391,2990.2,2989.6,0.7862]
[1752211260383,0.59302,2990.1,2989.6,0.7862]
[1752211260876,0.59302,2990.1,2989.6,0.001]
[1752211262763,5.391,2990.0,2989.6,0.001]
[1752211262961,5.391,2990.0,2989.8,18.00437166]
[1752211263172,5.391,2990.0,2989.8,11.8800666]
[1752211263173,0.55,2989.9,2989.8,11.8800666]
[1752211263448,1.334,2989.9,2989.8,11.8800666]
[1752211263651,2.40025405,2989.9,2989.8,11.8800666]
[1752211264070,7.24125405,2989.9,2989.8,11.8800666]
[1752211265952,1.85025405,2989.9,2989.8,11.8800666]
[1752211266251,6.174,2989.9,2989.8,11.8800666]
[1752211267368,6.174,2989.9,2989.8,11.32318847]
[1752211267369,10.38127263,2989.9,2989.8,11.32318847]
[1752211267882,7.03667917,2989.9,2989.8,11.32318847]
[1752211268076,10.38127263,2989.9,2989.8,11.32318847]
[1752211268479,7.03667917,2989.9,2989.8,11.32318847]
[1752211268647,8.07479767,2989.9,2989.8,11.32318847]
[1752211268849,7.7621185,2989.9,2989.8,11.32318847]
[1752211270451,1.8221185,2989.9,2989.8,11.32318847]
[1752211270791,5.39,2989.9,2989.8,11.32318847]
[1752211273099,5.5572,2989.9,2989.8,11.32318847]
[1752211273603,0.1672,2989.9,2989.8,11.32318847]
[1752211273891,5.389,2989.9,2989.8,12.08698847]
[1752211274091,5.389,2989.9,2989.8,11.32318847]
[1752211276805,5.94462,2989.9,2989.8,11.32318847]
[1752211276977,0.55562,2989.9,2989.8,11.32318847]
[1752211277177,8.024,2990.3,2989.8,11.32318847]
[1752211277409,11.3408,2990.6,2989.8,11.32318847]
[1752211277577,0.72093991,2990.5,2989.8,11.32318847]
[1752211277772,0.1672,2990.2,2989.8,11.32318847]
[1752211278108,5.387,2990.1,2989.8,11.32318847]
[1752211278500,0.1672,2990.2,2989.8,11.32318847]
[1752211278683,5.387,2990.1,2989.9,0.7982]
[1752211279975,0.1672,2990.2,2989.9,0.7982]
[1752211280204,5.387,2990.1,2989.9,0.7982]
[1752211280878,0.1672,2990.2,2989.9,0.7982]
[1752211281280,5.386,2990.1,2989.9,0.7982]
[1752211282114,5.386,2990.1,2989.8,11.32318847]
[1752211282331,0.1672,2990.2,2989.8,11.32318847]
[1752211282552,5.386,2990.0,2989.8,11.32318847]
[1752211282750,0.1672,2990.2,2989.9,0.8099]
[1752211283027,5.386,2990.0,2989.9,10.9771]
[1752211284024,5.386,2990.0,2989.9,0.9771]
[1752211284393,5.385,2990.2,2989.9,0.9771]
[1752211285318,8.024,2990.7,2989.9,0.9771]
[1752211285319,8.024,2990.7,2989.9,10.84334593]
[1752211285519,0.1664,2990.6,2990.2,0.82]
[1752211285725,0.002,2991.3,2990.4,0.82]
[1752211286049,0.1664,2991.0,2990.4,0.9864]
[1752211286916,5.384,2990.9,2990.4,0.9864]
[1752211287833,5.384,2990.9,2990.4,0.82]
[1752211288135,0.5384,2990.8,2990.4,0.82]
[1752211288292,5.384,2990.7,2990.4,0.82]
[1752211289836,0.1664,2990.9,2990.4,0.82]
[1752211290044,5.383,2990.6,2990.4,0.82]
[1752211290564,5.383,2990.6,2990.1,0.7626]
[1752211290856,0.1672,2990.4,2990.1,0.7626]
[1752211291252,5.383,2990.3,2990.1,0.7626]
[1752211292152,0.1672,2990.4,2990.1,0.7626]
[1752211292550,5.382,2990.7,2990.1,0.7626]
[1752211292731,5.382,2990.7,2990.2,0.1672]
[1752211292927,5.382,2990.7,2990.1,0.7626]
[1752211293151,0.1672,2990.5,2990.1,0.7626]
[1752211293526,0.1672,2990.3,2990.1,0.7626]
[1752211296663,0.1672,2990.3,2990.1,0.5126]
[1752211299046,0.1672,2990.3,2989.9,10.0]
[1752211299871,0.1672,2990.3,2990.0,0.7637]
[1752211301754,0.1672,2990.0,2989.9,10.0]
[1752211302281,0.1672,2990.0,2989.8,12.11188847]
[1752211302633,0.1672,2990.0,2989.9,10.0]
[1752211302836,5.378,2990.3,2989.9,10.0]
[1752211303059,5.5452,2990.3,2989.9,10.0]
[1752211304268,0.1672,2990.3,2989.9,10.0]
[1752211304476,0.1672,2990.3,2990.0,0.03344481]
[1752211304768,0.002,2991.3,2990.0,0.03344481]
[1752211304769,0.7695,2991.1,2990.1,0.7635]
[1752211304975,5.378,2990.8,2990.2,0.03344257]
[1752211305478,0.7695,2991.1,2990.2,0.03344257]
[1752211305780,5.377,2990.9,2990.2,0.03344257]
[1752211307274,0.002,2991.3,2990.2,0.03344257]
[1752211307458,5.377,2991.2,2990.2,0.03344257]
[1752211307792,0.61333,2991.1,2990.2,0.03344257]
[1752211307967,5.376,2991.0,2990.3,0.84104146]
[1752211308387,5.376,2991.0,2990.3,0.8076]
[1752211309967,0.002,2990.9,2990.3,0.8076]
[1752211310757,5.377,2990.9,2990.3,0.8076]
[1752211311254,5.9147,2990.9,2990.3,0.8076]
[1752211312191,0.5397,2990.9,2990.3,0.8076]
[1752211312405,5.375,2990.8,2990.3,0.8076]
[1752211314792,0.1672,2990.4,2990.0,0.7968]
[1752211315663,0.1672,2990.1,2990.0,0.7968]
[1752211317563,0.1672,2990.1,2989.9,11.001]
[1752211317988,0.1672,2990.1,2990.0,0.799]
[1752211318190,0.1672,2990.4,2990.0,0.83244481]
[1752211318802,0.1672,2990.4,2990.0,0.799]
[1752211319389,0.1672,2990.4,2990.1,0.81834369]
[1752211320700,0.002,2990.9,2990.4,0.8134]
[1752211320905,0.1664,2990.7,2990.4,0.8134]
[1752211321584,0.1664,2990.7,2990.4,0.84684034]
[1752211322809,0.7622,2990.8,2990.1,0.8076]
[1752211322985,0.1672,2990.3,2990.1,0.8076]
[1752211323383,0.7622,2990.8,2989.9,1.001]
[1752211323590,0.1672,2990.0,2989.9,1.001]
[1752211326182,0.1672,2990.0,2989.9,16.66536382]
[1752211326388,0.002,2990.9,2989.9,16.66536382]
[1752211326628,0.002,2990.9,2990.2,5.66436382]
[1752211326924,0.002,2990.9,2990.3,0.03344146]
[1752211327924,0.002,2990.9,2990.6,10.0]
[1752211328096,0.002,2990.9,2990.7,0.03343698]
[1752211328297,0.002,2990.9,2990.8,0.7973]
[1752211329137,0.002,2990.9,2990.4,0.7618]
[1752211330098,0.002,2990.9,2990.5,10.0]
[1752211330304,0.002,2990.9,2990.6,0.0334381]
[1752211330512,0.002,2990.9,2990.5,10.0]
[1752211330923,0.002,2990.9,2990.6,10.0]
[1752211331132,0.002,2990.9,2990.8,14.654587]
[1752211331305,0.00013851,2990.9,2990.8,25.388587]
[1752211331635,0.00013851,2990.9,2990.8,11.495]
[1752211332794,0.00013851,2990.9,2990.8,0.761]
[1752211333035,0.00013851,2990.9,2990.4,0.7824]
[1752211336434,0.1664,2990.7,2990.4,0.7824]
[1752211343542,0.00013851,2990.9,2990.6,0.1664]
[1752211343746,0.00013851,2990.9,2990.7,0.03343698]
[1752211344846,0.00013851,2990.9,2990.6,0.1664]
[1752211346113,0.00013851,2990.9,2990.4,0.7824]
[1752211346326,0.00013851,2990.9,2990.4,0.9488]
[1752211347743,0.1664,2990.8,2990.2,6.3353]
[1752211347924,0.1664,2990.8,2990.2,0.9743]
[1752211350644,0.7871,2990.7,2990.0,0.001]
[1752211350853,0.1672,2990.3,2990.0,0.001]
[1752211353552,0.1672,2990.3,2990.1,0.001]
[1752211354758,0.8231,2990.2,2990.1,0.001]
[1752211355264,0.9804,2990.3,2990.1,0.001]
[1752211357653,0.1672,2990.3,2990.1,0.001]
[1752211358260,0.8175,2990.7,2990.1,0.001]
[1752211358469,0.1664,2990.5,2990.1,0.001]
[1752211358769,0.1664,2990.5,2990.2,0.03344257]
[1752211358958,0.1664,2990.5,2990.1,0.001]
[1752211359129,0.8175,2990.7,2990.1,0.001]
[1752211359333,0.1672,2990.2,2990.1,0.001]
[1752211359641,0.924,2990.2,2990.1,0.001]
[1752211360859,10.0,2989.6,2988.1,0.04]
[1752211361036,0.7568,2989.4,2988.1,0.04]
[1752211361234,0.7568,2989.4,2988.2,0.03346496]
[1752211361449,5.357,2989.3,2988.5,0.7808]
[1752211361664,5.357,2989.3,2988.6,0.03446048]
[1752211361972,4.71697668,2989.2,2988.6,0.001]